Cogmind - Beta 9.3 @@@ ROGUE MODE // 2020.01.03 @ 23:58:10 Player: Zyalin Result: Destroyed by B-75 Beast with Magnetic Acceleration Cannon Performance ------------- Evolutions (4) 2000 Regions Visited (12) 2400 Robots Destroyed (159) 795 Value Destroyed (6682) 6682 Prototype IDs (8) 160 Alien Tech Used (0) 0 Bonus (4007) 4007 TOTAL SCORE: 16044 Bonus ------- High Alert Combat Kills 794 Follower Combat Kills 515 Entered Garrisons 1000 Used RIF Installer 2000 Friendly Fire -302 Cogmind --------- Core Integrity 0/850 Matter 85/300 Energy 77/100 System Corruption 25% Temperature Cool (12) Movement Core (300) Ox5 Location -6/Garrison Parts ------- > --- POWER (1) -------- (None) > --- PROPULSION (5) --- (None) > --- UTILITY (7) ------ Large Storage Unit Relay Coupler [Swarmer] (47) > --- WEAPON (2) ------- (None) > --- INVENTORY (10) --- High-capacity Matter Pod (0) Relay Coupler [Grunt] (23) Relay Coupler [Grunt] (22) Relay Coupler [Sentry] (24) Relay Coupler [Hunter] (14) Hypervelocity Gauss Rifle Hypervelocity Gauss Rifle Remote Datajack Remote Datajack Katana Peak State ------------ > --- POWER ------------ Cold Fusion Reactor > --- PROPULSION ------- Improved Gravmag System Improved Gravmag System Combat Airjet Gravmag Array > --- UTILITY ---------- Improved Cooling System Large Storage Unit Large Storage Unit Large Storage Unit Relay Coupler [NC] Relay Coupler [Grunt] Improved System Backup Module > --- WEAPON ----------- Heavy Plasma Cannon Hypervelocity Gauss Rifle > --- INVENTORY -------- Fission Core Light Treads Improved Gravmag System Improved Cooling System High-capacity Matter Pod Relay Coupler [NC] Relay Coupler [ARC] Relay Coupler [Swarmer] Relay Coupler [Grunt] Relay Coupler [Grunt] Relay Coupler [Sentry] Relay Coupler [Sentry] Relay Coupler [Sentry] Relay Coupler [Hunter] Phase Cannon Magnetic Acceleration Cannon Improved Grenade Launcher Remote Datajack Remote Datajack Remote Datajack Katana [Rating: 64] Favorites ----------- Power Improved Ion Engine Engine Improved Ion Engine Power Core Fission Core Reactor Cold Fusion Reactor Propulsion Combat Airjet Treads Light Treads Leg Improved Carbon-fiber Leg Wheel Wheel Hover Unit Combat Airjet Flight Unit VTOL Module Utility Large Storage Unit Device Improved Cooling System Storage Large Storage Unit Hackware Relay Coupler [Sentry] Protection Improved Light Armor Plating Weapon Improved Medium Laser Energy Gun Improved Medium Laser Energy Cannon Phase Cannon Ballistic Gun Flak Gun Ballistic Cannon Advanced Assault Cannon Launcher Heavy Rocket Launcher Special Weapon Remote Datajack Slashing Weapon Katana Build | -11 -10 -9 -8 -8 -8 -8 -7 -7 -6 -6 -6 -6 ------- Run | Scr Mat Mat Mat Gar Mat Gar Fac Gar Fac Gar Fac Gar Slots Evolved 8 | . . 2 2 . . . 2 . 2 . . . Power . | . . . . . . . . . . . . . Propulsion 3 | . . 1 . . . . 1 . 1 . . . Utility 5 | . . 1 2 . . . 1 . 1 . . . Weapon . | . . . . . . . . . . . . . Parts Attached 229 | 6 13 25 19 30 10 5 12 9 15 31 40 14 Power 21 | 1 1 5 1 1 . 1 1 . 3 6 1 . Engine 18 | 1 1 5 1 1 . 1 1 . 2 5 . . Core 1 | . . . . . . . . . . . 1 . Reactor 2 | . . . . . . . . . 1 1 . . Propulsion 67 | 2 3 8 5 4 . . 2 4 6 10 18 5 Treads 27 | 2 2 7 5 1 . . . 2 . 3 4 1 Leg 14 | . 1 1 . . . . . . 5 7 . . Wheel 4 | . . . . . . . . . . . 4 . Hover 18 | . . . . 3 . . 2 2 1 . 10 . Flight 4 | . . . . . . . . . . . . 4 Utility 50 | 1 6 4 7 10 1 . 2 1 4 6 5 3 Device 12 | . 1 4 1 1 . . 1 . . 2 2 . Storage 13 | 1 4 . 4 2 . . . . . 1 1 . Processor . | . . . . . . . . . . . . . Hackware 14 | . . . . 2 . . 1 . 4 2 2 3 Protection 11 | . 1 . 2 5 1 . . 1 . 1 . . Artifact . | . . . . . . . . . . . . . Weapon 91 | 2 3 8 6 15 9 4 7 4 2 9 16 6 Energy Gun 21 | 1 3 4 3 5 . 1 1 . . 2 1 . Energy Cannon 5 | . . . . . 1 . . . . . 4 . Ballistic Gun 27 | 1 . 3 1 4 3 2 2 . . 3 4 4 Ballistic Cannon 7 | . . . . . . . 3 1 1 2 . . Launcher 19 | . . 1 2 4 3 1 1 3 . 1 2 1 Special Weapon 9 | . . . . 2 2 . . . 1 1 3 . Impact Weapon . | . . . . . . . . . . . . . Slashing Weapon 3 | . . . . . . . . . . . 2 1 Piercing Weapon . | . . . . . . . . . . . . . Special Melee Weapon . | . . . . . . . . . . . . . Unidentified Prototypes 6 | . . 2 . . . . 2 . 2 . . . Parts Lost 57 | . 4 2 2 3 . 3 3 3 5 6 11 15 Power 7 | . . 1 . 1 . 1 1 1 . 1 . 1 Propulsion 26 | . 1 . 1 . . . . 1 4 4 7 8 Utility 12 | . . 1 . . . . 2 . 1 . 3 5 Weapon 12 | . 3 . 1 2 . 2 . 1 . 1 1 1 Highest Loss Streak 12 | . 3 1 1 2 . 1 2 2 3 4 4 12 Average Slot Usage (%) 93 | . 95 98 99 99 99 88 94 74 73 98 90 87 Engine 6 | . 14 10 9 8 9 9 4 4 . 3 . . Reactor 1 | . . . . . . . . . 1 2 5 . Treads 11 | . 26 30 27 2 . . . 3 3 10 5 4 Leg 4 | . 1 2 . . . . . . 7 21 4 . Hover 11 | . . . . 24 27 27 30 26 11 . 13 12 Device 6 | . 2 9 9 7 . . 5 . . 5 7 12 Storage 22 | . 22 22 28 27 27 27 23 23 20 20 20 16 Hackware 6 | . . . . 1 4 . 6 . 12 18 13 13 Protection 4 | . 1 . 7 9 13 9 6 6 3 1 1 . Energy Gun 6 | . 15 13 12 8 . 5 . . . 3 1 . Ballistic Gun 5 | . 9 8 4 8 8 9 9 . . 1 . 11 Ballistic Cannon 1 | . . . . . . . 3 4 2 4 . . Naked Turns . | . . . . . . . . . . . . . Heaviest Build 80 | 12 41 47 77 72 77 77 74 80 78 77 79 74 Greatest Support 90 | 40 40 60 60 66 66 66 88 79 74 90 90 39 Greatest Overweight (x) 10 | 2 1 1 1 1 1 1 2 1 3 2 5 10 Average Overweight (x) . | . . . . . . . . . 1 . . 1 Largest Inventory Capacity 28 | 6 16 16 28 22 22 22 22 22 22 22 28 22 Average Capacity 20 | 5 11 16 22 22 22 22 22 22 22 22 22 19 Most Carried 28 | . 16 16 28 22 22 22 22 22 20 22 22 22 Average Carried 18 | . 6 14 21 21 21 20 21 20 16 21 20 18 Final Capacity 22 | 6 16 16 22 22 22 22 22 22 22 22 22 10 Final Carried 22 | . 16 16 20 22 21 22 22 19 19 22 22 10 Class Distribution -------------------- 40% | Bothacker-Mutant 20% | Botlord-Mutant 18% | Scavenger-Mutant 11% | Mutant 10% | Hauler-Mutant Dominant Class ---------------- Mutant | -10/Materials Scavenger-Mutant | -9/Materials Hauler-Mutant | -8/Materials Bothacker-Mutant | -8/Garrison Bothacker-Mutant | -8/Materials Bothacker-Mutant | -8/Garrison Bothacker-Mutant | -7/Factory Bothacker-Mutant | -7/Garrison Bothacker-Mutant | -6/Factory Bothacker-Mutant | -6/Garrison Botlord-Mutant | -6/Factory Botlord-Mutant | -6/Garrison Resources | -11 -10 -9 -8 -8 -8 -8 -7 -7 -6 -6 -6 -6 ----------- Run | Scr Mat Mat Mat Gar Mat Gar Fac Gar Fac Gar Fac Gar Matter Collected 5107 | 157 318 595 273 711 131 101 438 58 230 1086 767 242 Remotely . | . . . . . . . . . . . . . Salvage Created 5354 | . 496 929 603 874 246 123 323 213 49 773 599 126 Parts 306 | . 27 51 36 47 24 11 16 12 3 31 35 13 Haulers Intercepted 8 | . 2 3 . . . . 1 . . . 2 . Recyclers Shooed 3 | . . 1 1 . . . . . . . 1 . Parts Field Recycled . | . . . . . . . . . . . . . Retrieved Matter . | . . . . . . . . . . . . . Parts Self-Destructed . | . . . . . . . . . . . . . Prevented . | . . . . . . . . . . . . . Kills | -11 -10 -9 -8 -8 -8 -8 -7 -7 -6 -6 -6 -6 ------- Run | Scr Mat Mat Mat Gar Mat Gar Fac Gar Fac Gar Fac Gar Combat Hostiles Destroyed 132 | . 8 16 17 24 6 6 5 13 1 21 7 8 Melee 2 | . 1 . . . . . . . . . 1 . Guns 56 | . 7 16 8 10 1 3 2 . . 5 . 4 Cannons 18 | . . . . . 2 . . 1 . 12 3 . AOE 56 | . . . 9 14 3 3 3 12 1 4 3 4 Classes Destroyed 16 | . 5 4 1 2 . 1 . . . 1 2 . Worker 4 | . . 1 2 . . . 1 . . . . . Builder 3 | . . . 1 . 1 . . . . . 1 . Tunneler 2 | . . . . . . . . . . . 2 . Hauler 8 | . 2 3 . . . . 1 . . . 2 . Recycler 4 | . 2 . . . . . 1 . . . 1 . Operator 2 | . . 1 . . . . . . 1 . . . Watcher 3 | . 1 1 . . . . . . . . 1 . Swarmer 51 | . 3 2 7 10 2 4 . 7 . 8 . 8 Grunt 49 | . 5 6 6 7 3 . 4 6 1 11 . . Brawler 2 | . . . . 1 . . . . . 1 . . Duelist 2 | . . 1 . 1 . . . . . . . . Sentry 18 | . . 7 4 4 2 . 1 . . . . . Specialist 1 | . . . . 1 . . . . . . . . Hunter 4 | . . . . . . 2 . . . . 2 . Programmer 5 | . . . . . . . . . . . 5 . Behemoth 1 | . . . . . . . . . . 1 . . Best Kill Streak 13 | . 4 3 7 7 3 4 3 13 2 5 5 4 Combat Bots Only 13 | . 3 3 6 7 2 4 3 13 1 5 2 4 Max Kills in Single Turn 5 | . 1 1 5 3 2 3 2 2 1 3 3 2 Gunslinging . | . . . . . . . . . . . . . Exploded 4 | . . . 4 3 1 3 2 2 1 3 1 2 Melee 1 | . 1 . . . . . . . . . 1 . Uniques/NPCs Destroyed . | . . . . . . . . . . . . . Combat | -11 -10 -9 -8 -8 -8 -8 -7 -7 -6 -6 -6 -6 -------- Run | Scr Mat Mat Mat Gar Mat Gar Fac Gar Fac Gar Fac Gar Damage Taken 11701 | . 730 1131 903 1270 263 478 642 454 678 1524 1974 1654 Core 1630 | . 95 171 85 222 36 38 83 47 84 134 264 371 Absorbed by Shields 735 | . . . . 3 . 96 . 51 . 500 . 85 Core Remaining (%) 66 | 100 62 57 . . . 30 . 81 . . . . Volleys Fired 491 | . 43 58 46 86 24 26 21 17 5 97 45 23 Largest 2 | . 2 2 2 2 2 2 2 1 1 2 2 2 Hottest 150 | . 65 121 112 112 89 84 76 48 39 122 150 66 Shots Fired 834 | . 80 115 86 151 40 43 40 17 5 157 63 37 Gun 645 | . 80 114 80 136 16 42 27 . . 96 21 33 Cannon 113 | . . . . . 16 . 11 6 . 52 28 . Launcher 52 | . . 1 6 13 5 1 2 11 2 3 4 4 Special 24 | . . . . 2 3 . . . 3 6 10 . Kinetic 406 | . 41 43 11 60 16 32 38 6 . 107 19 33 Thermal 287 | . 39 39 54 76 . 10 . . . 41 28 . Explosive 52 | . . 1 6 13 5 1 2 11 2 3 4 4 Electromagnetic 65 | . . 32 15 . 16 . . . . . 2 . Robot Hit Streak 34 | . 10 21 8 34 7 10 6 4 6 14 5 9 Robot Miss Streak 9 | . 2 3 3 9 5 7 2 2 2 5 4 3 Penetration Max 1 | . . . . . . . 1 . . . 1 . Secondary Targets 5 | . 2 1 . 2 . . . . . . . . Max Gunslinging Chain 1 | . 1 1 . 1 . . . . . . . . Shots Hit Robots 575 | . 56 81 61 103 29 33 28 10 3 113 38 20 Core Hits 341 | . 22 35 38 67 17 20 21 26 10 47 25 13 Critical Hits 18 | . . . . . 1 . 3 . . . 4 10 Critical Kills 6 | . . . . . 1 . 1 . . . . 4 Critical Parts Destroyed 12 | . . . . . . . 2 . . . 4 6 Melee Attacks 51 | . . . . . . . . . . . 49 2 Impact . | . . . . . . . . . . . . . Slashing 51 | . . . . . . . . . . . 49 2 Piercing . | . . . . . . . . . . . . . Sneak Attacks . | . . . . . . . . . . . . . Combat Hostiles . | . . . . . . . . . . . . . Follow-up Attacks . | . . . . . . . . . . . . . Damage Inflicted 15204 | . 675 1185 1608 2616 775 627 745 1572 471 2904 1496 530 Guns 6809 | . 660 1175 879 1519 203 369 364 . . 1417 105 118 Cannons 2186 | . . . . . 227 . 199 83 . 1089 588 . Explosions 6014 | . . . 703 1097 345 258 182 1489 425 388 744 383 Melee 88 | . . . . . . . . . . . 59 29 Ramming 107 | . 15 10 26 . . . . . 46 10 . . Kinetic 4918 | . 403 401 143 593 203 299 563 83 . 2029 83 118 Thermal 3382 | . 257 402 662 926 . 70 . . . 477 588 . Explosive 5962 | . . . 651 1097 345 258 182 1489 425 388 744 383 Electromagnetic 747 | . . 372 126 . 227 . . . . . 22 . Impact . | . . . . . . . . . . . . . Slashing 88 | . . . . . . . . . . . 59 29 Piercing . | . . . . . . . . . . . . . Highest Corruption 25 | . . . . . . . . . 7 7 23 25 Average Corruption 9 | . . . . . . . . . 5 7 10 20 Corruption Purged 5 | . . . . . . . . . . . 2 3 Effects 166 | . . . . . . . . . 11 45 69 41 Message Errors 25 | . . . . . . . . . 4 7 10 4 Matter Fused 38 | . . . . . . . . . 2 17 16 3 Heat Flow Errors 17 | . . . . . . . . . 3 1 9 4 Energy Discharges 19 | . . . . . . . . . 2 3 5 9 Parts Rejected 2 | . . . . . . . . . . 1 1 . Data Loss (minor) 12 | . . . . . . . . . . 3 7 2 Data Loss (major) 4 | . . . . . . . . . . . 3 1 Misfires 1 | . . . . . . . . . . 1 . . Alerts 1 | . . . . . . . . . . . . 1 Misdirections 6 | . . . . . . . . . . . 2 4 Targeting Errors 33 | . . . . . . . . . . 10 15 8 Weapon Failures 8 | . . . . . . . . . . 2 1 5 Overload Shots . | . . . . . . . . . . . . . Overflow Damage 489 | . . . 40 46 28 25 6 31 74 74 103 62 Projectiles 69 | . . . . . 2 . 6 . . 11 50 . Explosions 420 | . . . 40 46 26 25 . 31 74 63 53 62 Melee . | . . . . . . . . . . . . . Knockbacks 25 | . . . . . . . 5 . 2 18 . . Impact 2 | . . . . . . . . . 2 . . . Kinetic 22 | . . . . . . . 5 . . 17 . . Secondary 1 | . . . . . . . . . . 1 . . Self-Inflicted Damage 761 | . . . 36 135 31 41 . 131 185 . 107 95 Shots 17 | . . . 1 3 1 1 . 5 2 . 1 3 Rammed 19 | . 5 1 4 . . . . . 7 2 . . Targets Rammed 19 | . 5 1 4 . . . . . 7 2 . . Kicked . | . . . . . . . . . . . . . Crushed . | . . . . . . . . . . . . . Highest Temperature 321 | . 122 129 209 180 84 60 321 36 267 152 236 128 Average Temperature 59 | . 39 35 93 66 35 24 86 15 112 101 95 69 Received Heat Transfer 2992 | . 315 378 387 468 54 45 309 156 216 463 117 84 Effects 4 | . . . 1 . . . . . . . 3 . Energy Bleed 1 | . . . 1 . . . . . . . . . Interference 3 | . . . . . . . . . . . 3 . Siege Activations . | . . . . . . . . . . . . . Robots Corrupted . | . . . . . . . . . . . . . Combat Hostiles . | . . . . . . . . . . . . . Parts Fried . | . . . . . . . . . . . . . Impact Corruptions . | . . . . . . . . . . . . . Robots Melted . | . . . . . . . . . . . . . Combat Hostiles . | . . . . . . . . . . . . . Parts Melted 6 | . 1 2 . 3 . . . . . . . . Heat Transferred 6725 | . 574 962 1456 1998 . 90 . . . 925 720 . Parts Sabotaged . | . . . . . . . . . . . . . Parts Stolen . | . . . . . . . . . . . . . Parts Stripped . | . . . . . . . . . . . . . Power Chain Reactions 1 | . . . 1 . . . . . . . . . Missiles Intercepted . | . . . . . . . . . . . . . Alert | -11 -10 -9 -8 -8 -8 -8 -7 -7 -6 -6 -6 -6 ------- Run | Scr Mat Mat Mat Gar Mat Gar Fac Gar Fac Gar Fac Gar Peak Influence 1141 | . 176 267 356 1141 838 669 560 535 350 737 698 638 Average Influence 416 | . 67 150 203 751 683 632 443 379 291 475 532 494 Maximum Alert Level 4 | . . 1 1 4 3 2 2 2 1 3 2 2 Low Security (%) 23 | 100 100 76 50 . . . . . 2 5 . . Level 1 27 | . . 23 49 20 . . 45 54 97 34 4 . Level 2 34 | . . . . 5 50 100 54 45 . 44 95 100 Level 3 12 | . . . . 60 49 . . . . 15 . . Level 4 2 | . . . . 14 . . . . . . . . Level 5 . | . . . . . . . . . . . . . High Security . | . . . . . . . . . . . . . Max Security . | . . . . . . . . . . . . . Squads Dispatched 17 | . . 2 2 . 2 . 2 . 3 . 6 . Investigation 4 | . . . 1 . . . 2 . 1 . . . Extermination 4 | . . . . . . . . . . . 4 . Reinforcement 7 | . . 2 1 . 2 . . . 1 . 1 . Assault 1 | . . . . . . . . . . . 1 . Garrison 1 | . . . . . . . . . 1 . . . Intercept . | . . . . . . . . . . . . . Construction Impeded 1 | . . . 1 . . . . . . . . . Haulers Reinforced . | . . . . . . . . . . . . . Stealth | -11 -10 -9 -8 -8 -8 -8 -7 -7 -6 -6 -6 -6 --------- Run | Scr Mat Mat Mat Gar Mat Gar Fac Gar Fac Gar Fac Gar Distress Signals 12 | . 1 5 . . 2 . . . 3 . 1 . Communications Jammed . | . . . . . . . . . . . . . Distress Signals . | . . . . . . . . . . . . . Times Spotted 244 | . 15 30 24 36 18 9 13 12 13 28 31 15 Peak Tracking Total 8 | . 4 6 6 8 8 4 7 4 6 6 7 4 Tactical Retreats 25 | . 4 1 4 5 . . 2 1 1 2 2 3 Traps | -11 -10 -9 -8 -8 -8 -8 -7 -7 -6 -6 -6 -6 ------- Run | Scr Mat Mat Mat Gar Mat Gar Fac Gar Fac Gar Fac Gar Traps Triggered 5 | . . . . 3 . . . . . 1 1 . Indirectly . | . . . . . . . . . . . . . Trap Hack Attempts . | . . . . . . . . . . . . . Triggered . | . . . . . . . . . . . . . Disarmed . | . . . . . . . . . . . . . Reprogrammed . | . . . . . . . . . . . . . Reused . | . . . . . . . . . . . . . Traps Extracted . | . . . . . . . . . . . . . Installed . | . . . . . . . . . . . . . Triggered . | . . . . . . . . . . . . . Machines | -11 -10 -9 -8 -8 -8 -8 -7 -7 -6 -6 -6 -6 ---------- Run | Scr Mat Mat Mat Gar Mat Gar Fac Gar Fac Gar Fac Gar Machines Disabled 20 | . . . . 5 1 . . . 3 3 7 1 Max in Single Turn 2 | . . . . 2 1 . . . 2 1 2 1 Garrison Relay 7 | . . . . 3 . . . . . 3 . 1 Phase Generator 1 | . . . . 1 . . . . . . . . Machines Sabotaged . | . . . . . . . . . . . . . Garrisons Compromised . | . . . . . . . . . . . . . Overloaded Fab Kills 4 | . . . . . . . . . 4 . . . Fab Network Shutdowns . | . . . . . . . . . . . . . Hacking | -11 -10 -9 -8 -8 -8 -8 -7 -7 -6 -6 -6 -6 --------- Run | Scr Mat Mat Mat Gar Mat Gar Fac Gar Fac Gar Fac Gar Machines Accessed 26 | . . 4 2 . 3 . 5 . 6 . 6 . Terminals 16 | . . 4 1 . 1 . 2 . 4 . 4 . Fabricators 1 | . . . . . . . . . 1 . . . Repair Stations 2 | . . . . . . . 1 . . . 1 . Recycling Units . | . . . . . . . . . . . . . Scanalyzers 2 | . . . . . 1 . 1 . . . . . Garrison Access 5 | . . . 1 . 1 . 1 . 1 . 1 . Total Hacks 55 | . . 12 5 . 5 . 11 . 9 . 13 . Successful 33 | . . 8 2 . 2 . 6 . 6 . 9 . Failed 22 | . . 4 3 . 3 . 5 . 3 . 4 . Catastrophic 2 | . . . . . . . 1 . 1 . . . Database Lockouts . | . . . . . . . . . . . . . Manual 39 | . . 14 2 . 2 . 5 . 8 . 8 . Terminals 36 | . . 12 3 . 2 . 4 . 7 . 8 . Fabricators 1 | . . . . . . . . . 1 . . . Repair Stations 6 | . . . . . . . 2 . . . 4 . Recycling Units . | . . . . . . . . . . . . . Scanalyzers 5 | . . . . . 2 . 3 . . . . . Garrison Access 7 | . . . 2 . 1 . 2 . 1 . 1 . Terminal Hacks 5 | . . 3 1 . . . . . . . 1 . Robot Analysis 3 | . . 3 . . . . . . . . . . Prototype ID Bank 1 | . . . 1 . . . . . . . . . Zone Layout 1 | . . . . . . . . . . . 1 . Fabricator Hacks . | . . . . . . . . . . . . . Repair Station Hacks 3 | . . . . . . . . . . . 3 . Scan Component 2 | . . . . . . . . . . . 2 . Repair 1 | . . . . . . . . . . . 1 . Recycling Unit Hacks . | . . . . . . . . . . . . . Scanalyzer 1 | . . . . . . . 1 . . . . . Insert Component 1 | . . . . . . . 1 . . . . . Garrison Access Hacks 5 | . . . 1 . 1 . 1 . 1 . 1 . Unlock Access 5 | . . . 1 . 1 . 1 . 1 . 1 . Unauthorized Hacks 51 | . . 13 2 . 3 . 9 . 13 . 11 . Terminals 18 | . . 5 . . 1 . 4 . 4 . 4 . Track 9 | . . 2 . . 1 . 1 . 2 . 3 . Botnet 7 | . . 2 . . . . 2 . 2 . 1 . Disrupt 1 | . . 1 . . . . . . . . . . Operators 1 | . . . . . . . 1 . . . . . Fabricators 1 | . . . . . . . . . 1 . . . Overload 1 | . . . . . . . . . 1 . . . Repair Stations . | . . . . . . . . . . . . . Recycling Units . | . . . . . . . . . . . . . Scanalyzers . | . . . . . . . . . . . . . Garrison Access . | . . . . . . . . . . . . . Data Cores Recovered 1 | . . 1 . . . . . . . . . . Used 1 | . . 1 . . . . . . . . . . Hacking Detections 19 | . . 4 2 . 2 . 4 . 2 . 5 . Full Trace Events 3 | . . . 1 . . . 2 . . . . . Feedback Events . | . . . . . . . . . . . . . Feedback Blocked . | . . . . . . . . . . . . . Robot Schematics Acquired . | . . . . . . . . . . . . . Robots Built . | . . . . . . . . . . . . . Matter . | . . . . . . . . . . . . . Time . | . . . . . . . . . . . . . Total Robot Build Rating . | . . . . . . . . . . . . . Part Schematics Acquired . | . . . . . . . . . . . . . Parts Built . | . . . . . . . . . . . . . Matter . | . . . . . . . . . . . . . Time . | . . . . . . . . . . . . . Total Part Build Rating . | . . . . . . . . . . . . . Parts Repaired 1 | . . . . . . . . . . . 1 . Time 70 | . . . . . . . . . . . 70 . Parts Recycled . | . . . . . . . . . . . . . Recycled Matter . | . . . . . . . . . . . . . Retrieved Matter . | . . . . . . . . . . . . . Retrieved Components . | . . . . . . . . . . . . . Parts Scanalyzed 1 | . . . . . . . 1 . . . . . Part Schematics Acquired . | . . . . . . . . . . . . . Parts Damaged . | . . . . . . . . . . . . . Bothacking | -11 -10 -9 -8 -8 -8 -8 -7 -7 -6 -6 -6 -6 ------------ Run | Scr Mat Mat Mat Gar Mat Gar Fac Gar Fac Gar Fac Gar Used RIF Installer 4 | . . . . 1 . 1 . 1 . 1 . . Robot Detection 1 | . . . . . . . . . . 1 . . Patrol Navigation 1 | . . . . . . . . 1 . . . . Structural Interface 1 | . . . . . . 1 . . . . . . Robots Hacked 16 | . . . . 1 2 . . . 3 4 6 . Non-combat 3 | . . . . . . . . . 2 . 1 . Combat 13 | . . . . 1 2 . . . 1 4 5 . Robot Hacks Applied 16 | . . . . 1 2 . . . 3 4 6 . parse_system 1 | . . . . . . . . . . . 1 . ignore_repairs 1 | . . . . . . . . . 1 . . . drop_inventory 1 | . . . . . . . . . 1 . . . find_garrison 2 | . . . . . 1 . . . . . 1 . overwrite_iff 5 | . . . . . . . . . . 3 2 . formatsys_high 6 | . . . . 1 1 . . . 1 1 2 . Relay Couplers Released 29 | . . . . 12 . . . . . 12 . 5 Machine Destruction 29 | . . . . 12 . . . . . 12 . 5 Attached 12 | . . . . 2 . . . . 3 2 2 3 Robots Rewired . | . . . . . . . . . . . . . Allies Hacked 1 | . . . . . . . . . . . 1 . Hacks Repelled . | . . . . . . . . . . . . . Allies | -11 -10 -9 -8 -8 -8 -8 -7 -7 -6 -6 -6 -6 -------- Run | Scr Mat Mat Mat Gar Mat Gar Fac Gar Fac Gar Fac Gar Total Allies 11 | . . . . 1 1 . . . 1 4 4 . Largest Group 3 | . . . . 1 1 . . . 1 1 3 . Highest-Rated Group 102 | . . . . 15 15 . . . 29 47 102 . Highest-Rated Ally 47 | . . . . 15 15 . . . 29 47 41 . Total Orders . | . . . . . . . . . . . . . Ally Attacks 66 | . . . . 4 8 . . . 11 11 32 . Total Damage 1963 | . . . . 15 178 . . . 187 252 1331 . Kills 19 | . . . . 1 2 . . . 3 2 11 . Allies Corrupted . | . . . . . . . . . . . . . Allies Melted . | . . . . . . . . . . . . . Intel | -11 -10 -9 -8 -8 -8 -8 -7 -7 -6 -6 -6 -6 ------- Run | Scr Mat Mat Mat Gar Mat Gar Fac Gar Fac Gar Fac Gar Robot Analysis Total 3 | . . 3 . . . . . . . . . . Derelict Logs Recovered . | . . . . . . . . . . . . . Drone Launches . | . . . . . . . . . . . . . Drone Recoveries . | . . . . . . . . . . . . . Exploration | -11 -10 -9 -8 -8 -8 -8 -7 -7 -6 -6 -6 -6 ------------- Run | Scr Mat Mat Mat Gar Mat Gar Fac Gar Fac Gar Fac Gar Turns Passed 9848 | 64 619 1260 1193 1416 326 402 465 218 789 1156 1477 463 Spaces Moved 5610 | 37 270 604 557 1014 188 273 438 140 364 545 984 196 Core 9 | 8 . . . . . . . . . . . 1 Treads 2139 | 29 270 604 557 22 . . . . 58 302 231 66 Legs 301 | . . . . . . . . . 44 243 14 . Wheels 96 | . . . . . . . . . . . 96 . Hover 3057 | . . . . 992 188 273 438 140 262 . 643 121 Flight 8 | . . . . . . . . . . . . 8 Fastest Speed 48 | 50 160 160 160 72 72 72 60 60 120 120 48 105 Average Speed 134 | 151 165 162 179 103 129 114 80 120 199 144 109 166 Slowest Speed 760 | 160 180 180 180 180 142 142 191 148 310 180 270 760 Overloaded Moves . | . . . . . . . . . . . . . Propulsion Burnouts . | . . . . . . . . . . . . . Robots Hopped . | . . . . . . . . . . . . . Cave-ins Triggered 5 | . . . . . . . . . . . 4 1 Exploration Rate (%) 40 | 4 39 58 49 91 23 53 9 48 10 74 29 41 Regions Visited 12 Branch Regions . Pre-discovered Areas . | . . . . . . . . . . . . . Known Exits Taken 5 | . . . 1 . 1 . 1 . 1 . 1 . Unknown Exits Taken 3 | 1 1 1 . . . . . . . . . . Scrap Searched . | . . . . . . . . . . . . . Spaces Dug 60 | . . 9 . 6 . . . . . . 45 . Terrain Destroyed 545 | . . 9 59 146 45 . 11 30 38 6 168 33 Melee 45 | . . . . . . . . . . . 45 . Projectile 10 | . . . . . . . 2 . . . 8 . AOE 490 | . . 9 59 146 45 . 9 30 38 6 115 33 Actions | -11 -10 -9 -8 -8 -8 -8 -7 -7 -6 -6 -6 -6 --------- Run | Scr Mat Mat Mat Gar Mat Gar Fac Gar Fac Gar Fac Gar Total 7034 | 42 356 782 661 1243 228 319 513 169 414 769 1253 285 Wait 325 | . 11 46 12 18 5 11 27 2 13 51 90 39 Move 5596 | 36 269 603 556 1013 188 271 437 139 364 544 980 196 Hop . | . . . . . . . . . . . . . Pick Up 115 | . 10 14 13 27 . 3 6 . 4 17 17 4 Fast Attach 80 | 6 8 11 2 4 1 . 7 . 8 10 18 5 Attach 54 | . 1 3 6 6 1 4 2 3 5 8 13 2 Detach 24 | . 4 5 . . 1 2 1 . 3 1 7 . Swap 95 | . 4 11 11 20 8 1 3 6 2 13 9 7 Drop 137 | . 1 30 11 30 . 1 9 2 3 22 21 7 Fire 491 | . 43 58 46 86 24 26 21 17 5 97 45 23 Melee 51 | . . . . . . . . . . . 49 2 Ram 7 | . . . . . . . . . 7 . . . Kick . | . . . . . . . . . . . . . Crush 12 | . 5 1 4 . . . . . . 2 . . Escape Stasis 46 | . . . . 38 . . . . . 4 4 . Rewire 1 | . . . . 1 . . . . . . . . Trap . | . . . . . . . . . . . . . Miscellaneous . | . . . . . . . . . . . . . Route ------- -11/Scrapyard -10/Materials (discovered 2 exits: *Mat / [*Min]) -9/Materials (discovered 4 exits: *Mat x2 / [*Min x2]) -8/Materials (discovered 2 exits: *Fac / Gar) -8/Garrison (discovered 3 exits: *Mat x3) -8/Materials -8/Garrison -7/Factory (discovered 2 exits: *Fac / Gar) -7/Garrison -6/Factory -6/Garrison (discovered 2 exits: *Fac x2) -6/Factory -6/Garrison (discovered 1 exit: [*Fac]) History --------- Turn | Location | Event 41 | -11/Scrapyard | Discovered new exit (range 15) 65 | -11/Scrapyard | Entered Materials 311 | -10/Materials | Build established: Mutant 323 | -10/Materials | Discovered new exit (range 15) 331 | -10/Materials | Discovered new exit (range 15) 529 | -10/Materials | Lost 3 parts (1n2w) 684 | -10/Materials | Entered another Materials area 684 | -9/Materials | Evolved 2 slots: Propulsion x1, Utility x1 764 | -9/Materials | Discovered new exit (range 6) 1108 | -9/Materials | Discovered new exit (range 9) 1461 | -9/Materials | Build established: Scavenger-Mutant 1705 | -9/Materials | Discovered new exit (range 9) 1929 | -9/Materials | Discovered new exit (range 3) 1944 | -9/Materials | Entered another Materials area 1944 | -8/Materials | Evolved 2 slots: Utility x2 1984 | -8/Materials | Identified exit to Garrison 2320 | -8/Materials | Discovered new exit (range 16) 2804 | -8/Materials | Build established: Hauler-Mutant 3137 | -8/Materials | Entered Garrison 3300 | -8/Garrison | Triggered checkpoint 3333 | -8/Garrison | Discovered new exit (range 8) 3362 | -8/Garrison | Triggered checkpoint 3446 | -8/Garrison | Discovered new exit (range 14) 3509 | -8/Garrison | Destroyed 7 combat bots 3568 | -8/Garrison | Triggered checkpoint 3629 | -8/Garrison | Discovered new exit (range 8) 3639 | -8/Garrison | Installed Relay Interface Framework 3670 | -8/Garrison | Triggered checkpoint 3676 | -8/Garrison | Garrison Relay disabled 3826 | -8/Garrison | Build established: Scavenger-Mutant 3898 | -8/Garrison | Triggered checkpoint 3907 | -8/Garrison | Garrison Relay disabled 4060 | -8/Garrison | Triggered checkpoint 4103 | -8/Garrison | Garrison Relay disabled 4171 | -8/Garrison | Phase Generator disabled 4210 | -8/Garrison | Build established: Bothacker-Mutant 4388 | -8/Garrison | Core integrity fell below 50% 4388 | -8/Garrison | Triggered checkpoint 4553 | -8/Garrison | Entered Materials 4879 | -8/Materials | Identified exit to Garrison 4879 | -8/Materials | Entered Garrison 4887 | -8/Garrison | Expanded RIF knowledge: Structural Interface 4928 | -8/Garrison | Triggered checkpoint 5056 | -8/Garrison | Discovered new exit (range 14) 5262 | -8/Garrison | Triggered checkpoint 5281 | -8/Garrison | Entered Factory 5281 | -7/Factory | Evolved 2 slots: Propulsion x1, Utility x1 5322 | -7/Factory | Identified exit to Garrison 5706 | -7/Factory | Discovered new exit (range 16) 5746 | -7/Factory | Entered Garrison 5749 | -7/Garrison | Expanded RIF knowledge: Patrol Navigation 5843 | -7/Garrison | Triggered checkpoint 5854 | -7/Garrison | Triggered checkpoint 5918 | -7/Garrison | Destroyed 13 combat bots 5951 | -7/Garrison | Discovered new exit (range 10) 5964 | -7/Garrison | Entered Factory 5964 | -6/Factory | Evolved 2 slots: Propulsion x1, Utility x1 6411 | -6/Factory | Lost 3 parts (2n1u) 6584 | -6/Factory | Garrison activated, responded to threat 6753 | -6/Factory | Identified exit to Garrison 6753 | -6/Factory | Entered Garrison 6794 | -6/Garrison | Triggered checkpoint 6849 | -6/Garrison | Garrison Relay disabled 6913 | -6/Garrison | Spotted B-75 Beast 6972 | -6/Garrison | Triggered checkpoint 7244 | -6/Garrison | Destroyed B-75 Beast 7244 | -6/Garrison | Triggered checkpoint 7272 | -6/Garrison | Lost 4 parts (3n1w) 7283 | -6/Garrison | Triggered checkpoint 7396 | -6/Garrison | Discovered new exit (range 10) 7414 | -6/Garrison | Triggered checkpoint 7528 | -6/Garrison | Garrison Relay disabled 7694 | -6/Garrison | Triggered checkpoint 7700 | -6/Garrison | Garrison Relay disabled 7824 | -6/Garrison | Discovered new exit (range 12) 7869 | -6/Garrison | Expanded RIF knowledge: Robot Detection 7909 | -6/Garrison | Entered Factory 8177 | -6/Factory | Build established: Botlord-Mutant 8567 | -6/Factory | Repaired Broken Cmb. Airjet 8737 | -6/Factory | P-60 Hacker assimilated allied Guardian 5a 8959 | -6/Factory | First assault squad dispatched 8960 | -6/Factory | System corruption reached 10% 9214 | -6/Factory | Crushed by falling debris 9236 | -6/Factory | Crushed by falling debris 9261 | -6/Factory | Crushed by falling debris 9262 | -6/Factory | Core integrity fell below 50% 9279 | -6/Factory | Crushed by falling debris 9292 | -6/Factory | Lost 4 parts (3n1u) 9386 | -6/Factory | Identified exit to Garrison 9386 | -6/Factory | Entered Garrison 9424 | -6/Garrison | Triggered checkpoint 9490 | -6/Garrison | Garrison Relay disabled 9660 | -6/Garrison | Lost 3 parts (2n1u) 9701 | -6/Garrison | Discovered new exit (range 8) 9797 | -6/Garrison | Triggered checkpoint 9797 | -6/Garrison | Spotted B-75 Beast 9819 | -6/Garrison | Crushed by falling debris 9843 | -6/Garrison | Core integrity fell below 20% 9849 | -6/Garrison | Destroyed by B-75 Beast with Magnetic Acceleration Cannon Last Messages --------------- 09819_ Crushed by falling debris. 09819_ VTOL Module destroyed. 09819_ System corrupted by crushing effect (+3). 09819_ Imp. Gravmag System destroyed. 09819_ System corrupted by crushing effect (+1). 09819_ Imp. Cooling System destroyed. 09819_ System corrupted by crushing effect (+2). 09822_ The unstable cave ceiling collapses. 09825_ System corrupted: Energy discharge (-114). 09828_ The unstable cave ceiling collapses. 09834_ Hyp. Gauss Rifle destroyed. 09841_ Acquired VTOL Module. 09842_ Fission Core destroyed. 09842_ Relay Coupler [Sentry] destroyed. 09842_ VTOL Module destroyed. 09842_ Knocked back. 09845_ RIF reveals location of phase wall. 09846_ System corrupted: Energy discharge (-38). 09848_ The unstable cave ceiling collapses. 09848_ Dropped Lrg. Storage Unit. Map ----- +----------------------------------------------------+ | ?????????????????????????????????????????????????? | | ?????????????????????????????????????????????????? | | ?????????????????????????????????????????????????? | | ?????????????????????????????????????????????????? | | ?????????????????????????????????????????????????? | | ?????????????????????????????????????????????????? | | ?????????????????????????????????????????????????? | | ?????????????????????????????????????????????????? | | ?????????????????????????????????????????????????? | | ?????????????????????????????????????????????????? | | ?????????????????????????????????????????????????? | | ??????????????????????##?????????????????????????? | | ??????????????????????# ?????????????????????????? | | ??????????????????????# ?????????????????????????? | | ??????????????????????+ ????????????????????????? | | ??????????????????????# ????????????????????????? | | ??????????????????????# ????????????????????????? | | ??????????????????????# ????????????????????????? | | ??????????????????????# ????????????????????????? | | ??????????????????????# ????????????????????????? | | ????????????????#""""## ##??????????????????????? | | ????????????????? ##?????????????????????? | | ??????????????????? ??????????????????????? | | ??s?????????????????? ??????????????????????? | | ????????????????# ????# [[#?######???????????????? | | ?????????????? ## ## !@### ###?????????????? | | ??????????s" !][ # # # ###???????????? | | ??????????s" ^^ #=# # #???????????? | | ??????????s" [** ]# #???????????? | | ??????????s" #BB# ###???????????? | | ???????????? ## ## ###BB #?????????????? | | ???????????? ## ?# ### # +##?????????????? | | ?? ???????? #?????????????? | | ?? ???????? #?????????????? | | ?? ???????? ###+### #?????????????? | | ?? #???????# ##""""## #??????# #?????????????? | | ?# #???????# #??????# #??????# #?????????????? | | ?# #???????# #?#++#?# +??????+ #?????????????? | | ? #???????# #?# #?# #??????# #?????????????? | | ?# #???????# #?# #?# #??????# #?????????????? | | ## #????s??# ### #?# #??????# #?????????????? | | ## #####+### + #?# #??????# #?????????????? | | ## #### ### ###+#### ##############? | | ## #??# + !! #? | | ## #####+######??##### ! [ #? | | ## #???# #???????????########### ########### #? | | ## ##### #?????????????????????# #?????????# #? | | + + #?????????????????????# #?????????# #? | | ##= #######?????????????????????" "?????????# #? | | ?# #???????????????????????????" "?????????# #? | +----------------------------------------------------+ Best States ------------- Heat Dissipation 64 Energy Generation 18 Energy Capacity 310 Matter Stores 300 Matter Capacity 300 Sight Range 16 Terrain Scan Density 10 Armor Coverage 450 Resistance: KI 30 Evasion (%) 59 Recoil Reduction 3 Offensive Hacking 10 Defensive Hacking 10 Item Schematics ----------------- None Robot Schematics ------------------ None Fabricated ------------ Nothing Alien Tech Used ----------------- None Achievements -------------- None Challenges ------------ None Game ------ Seed TrapBombardmentInterpreter Manual? 0 Play Time 01:16:20 Cumulative 345.6 hours Start 2020.01.03 @ 18:50:51 End 2020.01.03 @ 23:58:10 Sessions 3 Manual Loads 0 Difficulty Rogue Special Mode None Game No. 213 Rogue 213 Adventurer 0 Explorer 0 Win Type - Total 34 Types 25/2/4/2/1/0/0 Lore% 90 Gallery% 91 Achievement% 84 Wizard Run 0 Options --------- ASCII 0 Keyboard 0 Movement Numpad Keybinds 0 Fullscreen 1 Font 18/X11Bold Map View 76x50 Tactical HUD 1 Map Filters NONE Filters NONE Steam 1 RUN: c61f44f3-e160-44bb-a2bb-a657b2fa9320